[Event "Titled Tuesday Blitz November 08 Early 2022"]
[White "Melikyan, Gnel"]
[Black "Tifferet, Shaked"]
[WhiteFideId "54109990"]
[BlackFideId "2811529"]
[WhiteElo "2138"]
[BlackElo "2142"]
[Result "1-0"]
[Round "03"]
[TimeControl "180+1"]
[Date "2022.11.09"]
[WhiteClock "0:00:12"]
[BlackClock "0:00:02"]

1. e4 {[%clk 0:02:57]}  c5 {[%clk 0:02:59]} 2. Nf3 {[%clk 0:02:56]}  d6 {[%clk 0:02:58]} 3. d4 {[%clk 0:02:56]}  cxd4 {[%clk 0:02:59]} 4. Nxd4 {[%clk 0:02:55]}  Nf6 {[%clk 0:03:00]} 5. f3 {[%clk 0:02:56]}  Nc6 {[%clk 0:02:46]} 6. c4 {[%clk 0:02:56]}  e6 {[%clk 0:02:46]} 7. Nc3 {[%clk 0:02:55]}  Be7 {[%clk 0:02:47]} 8. Be3 {[%clk 0:02:55]}  O-O {[%clk 0:02:47]} 9. Qd2 {[%clk 0:02:56]}  d5 {[%clk 0:02:46]} 10. cxd5 {[%clk 0:02:51]}  exd5 {[%clk 0:02:47]} 11. Nxc6 {[%clk 0:02:51]}  bxc6 {[%clk 0:02:48]} 12. e5 {[%clk 0:02:51]}  Nd7 {[%clk 0:02:46]} 13. f4 {[%clk 0:02:51]}  Nc5 {[%clk 0:02:43]} 14. Rc1 {[%clk 0:02:48]}  Bf5 {[%clk 0:02:34]} 15. Be2 {[%clk 0:02:15]}  Qd7 {[%clk 0:02:05]} 16. O-O {[%clk 0:01:55]}  Ne4 {[%clk 0:01:37]} 17. Nxe4 {[%clk 0:01:53]}  Bxe4 {[%clk 0:01:38]} 18. Bd3 {[%clk 0:01:49]}  Bxd3 {[%clk 0:01:32]} 19. Qxd3 {[%clk 0:01:49]}  f6 {[%clk 0:01:28]} 20. Bd4 {[%clk 0:01:38]}  fxe5 {[%clk 0:01:22]} 21. Bxe5 {[%clk 0:01:36]}  Bf6 {[%clk 0:01:22]} 22. Qd4 {[%clk 0:01:34]}  Rae8 {[%clk 0:01:15]} 23. Rfe1 {[%clk 0:01:29]}  Bxe5 {[%clk 0:01:09]} 24. Rxe5 {[%clk 0:01:28]}  Rxe5 {[%clk 0:01:00]} 25. fxe5 {[%clk 0:01:27]}  Qf5 {[%clk 0:00:32]} 26. h3 {[%clk 0:01:26]}  h6 {[%clk 0:00:31]} 27. a4 {[%clk 0:01:11]}  Kh7 {[%clk 0:00:25]} 28. Rxc6 {[%clk 0:01:05]}  Qb1+ {[%clk 0:00:17]} 29. Kh2 {[%clk 0:01:04]}  Rf1 {[%clk 0:00:18]} 30. Qc3 {[%clk 0:00:24]}  Rh1+ {[%clk 0:00:12]} 31. Kg3 {[%clk 0:00:24]}  Rd1 {[%clk 0:00:09]} 32. Qc2+ {[%clk 0:00:24]}  Rd3+ {[%clk 0:00:10]} 33. Kh2 {[%clk 0:00:22]}  Qxc2 {[%clk 0:00:05]} 34. Rxc2 {[%clk 0:00:23]}  Re3 {[%clk 0:00:05]} 35. Rc7 {[%clk 0:00:21]}  d4 {[%clk 0:00:03]} 36. Rxa7 {[%clk 0:00:21]}  Rxe5 {[%clk 0:00:03]} 37. Rd7 {[%clk 0:00:18]}  Re2 {[%clk 0:00:03]} 38. b4 {[%clk 0:00:19]}  Rb2 {[%clk 0:00:04]} 39. Rxd4 {[%clk 0:00:18]}  Kg6 {[%clk 0:00:02]} 40. b5 {[%clk 0:00:18]}  Kf5 {[%clk 0:00:03]} 41. Rd7 {[%clk 0:00:18]}  g5 {[%clk 0:00:03]} 42. Rd6 {[%clk 0:00:18]}  h5 {[%clk 0:00:03]} 43. b6 {[%clk 0:00:18]}  g4 {[%clk 0:00:03]} 44. hxg4+ {[%clk 0:00:18]}  hxg4 {[%clk 0:00:04]} 45. a5 {[%clk 0:00:17]}  Kf4 {[%clk 0:00:04]} 46. Rf6+ {[%clk 0:00:17]}  Kg5 {[%clk 0:00:05]} 47. Rf8 {[%clk 0:00:17]}  Kh4 {[%clk 0:00:05]} 48. Rh8+ {[%clk 0:00:17]}  Kg5 {[%clk 0:00:06]} 49. a6 {[%clk 0:00:14]}  Rxb6 {[%clk 0:00:04]} 50. a7 {[%clk 0:00:15]}  Rb3 {[%clk 0:00:03]} 51. a8=Q {[%clk 0:00:14]}  g3+ {[%clk 0:00:04]} 52. Kh3 {[%clk 0:00:14]}  Rb6 {[%clk 0:00:02]} 53. Qe4 {[%clk 0:00:13]}  Rb3 {[%clk 0:00:02]} 54. Qe5+ {[%clk 0:00:13]}  Kg6 {[%clk 0:00:02]} 55. Qe6+ {[%clk 0:00:13]}  Kg5 {[%clk 0:00:02]} 56. Rg8+ {[%clk 0:00:13]}  Kf4 {[%clk 0:00:02]} 57. Rg4# {[%clk 0:00:12]} 1-0


[Site "https://www.chess.com"]

[Event "Titled Tuesday Blitz November 08 Early 2022"]
[White "Mendez Fortes, Eduardo Jesus"]
[Black "Ozen, Bahadir"]
[WhiteFideId "3502376"]
[BlackFideId "6337058"]
[WhiteElo "2307"]
[BlackElo "2503"]
[Result "1/2-1/2"]
[Round "03"]
[TimeControl "180+1"]
[Date "2022.11.09"]
[WhiteClock "0:00:05"]
[BlackClock "0:00:05"]

1. e4 {[%clk 0:03:00]}  g6 {[%clk 0:03:00]} 2. d4 {[%clk 0:03:00]}  Bg7 {[%clk 0:03:00]} 3. Nc3 {[%clk 0:03:00]}  c6 {[%clk 0:03:00]} 4. f4 {[%clk 0:03:00]}  d5 {[%clk 0:03:00]} 5. e5 {[%clk 0:03:00]}  Nh6 {[%clk 0:03:00]} 6. Nf3 {[%clk 0:03:00]}  f6 {[%clk 0:03:00]} 7. Bd3 {[%clk 0:02:58]}  Bg4 {[%clk 0:03:00]} 8. h3 {[%clk 0:02:58]}  Bxf3 {[%clk 0:02:59]} 9. Qxf3 {[%clk 0:02:58]}  O-O {[%clk 0:02:49]} 10. h4 {[%clk 0:02:56]}  fxe5 {[%clk 0:02:48]} 11. dxe5 {[%clk 0:02:57]}  Nd7 {[%clk 0:02:22]} 12. Qh3 {[%clk 0:02:50]}  Nc5 {[%clk 0:02:22]} 13. h5 {[%clk 0:02:47]}  Nxd3+ {[%clk 0:02:09]} 14. Qxd3 {[%clk 0:02:21]}  Qe8 {[%clk 0:02:07]} 15. Ne2 {[%clk 0:01:49]}  gxh5 {[%clk 0:01:38]} 16. Ng3 {[%clk 0:01:47]}  Qg6 {[%clk 0:01:38]} 17. Rxh5 {[%clk 0:01:32]}  e6 {[%clk 0:01:05]} 18. Rg5 {[%clk 0:01:22]}  Qxd3 {[%clk 0:01:04]} 19. cxd3 {[%clk 0:01:23]}  Kh8 {[%clk 0:00:50]} 20. Ke2 {[%clk 0:01:04]}  Rg8 {[%clk 0:00:48]} 21. Kf3 {[%clk 0:00:58]}  Bf8 {[%clk 0:00:47]} 22. Rh5 {[%clk 0:00:56]}  Rg6 {[%clk 0:00:41]} 23. Be3 {[%clk 0:00:51]}  c5 {[%clk 0:00:22]} 24. Rah1 {[%clk 0:00:49]}  Kg8 {[%clk 0:00:23]} 25. f5 {[%clk 0:00:45]}  Nxf5 {[%clk 0:00:23]} 26. Nxf5 {[%clk 0:00:44]}  exf5 {[%clk 0:00:24]} 27. Rxh7 {[%clk 0:00:43]}  Bg7 {[%clk 0:00:20]} 28. Bf4 {[%clk 0:00:20]}  Re8 {[%clk 0:00:19]} 29. R7h5 {[%clk 0:00:18]}  Bxe5 {[%clk 0:00:17]} 30. Re1 {[%clk 0:00:18]}  Rge6 {[%clk 0:00:17]} 31. Rxf5 {[%clk 0:00:18]}  Bxf4 {[%clk 0:00:15]} 32. Rxe6 {[%clk 0:00:19]}  Rxe6 {[%clk 0:00:16]} 33. Kxf4 {[%clk 0:00:19]}  Re2 {[%clk 0:00:16]} 34. Rxd5 {[%clk 0:00:18]}  Rxg2 {[%clk 0:00:14]} 35. Rxc5 {[%clk 0:00:17]}  Rxb2 {[%clk 0:00:15]} 36. Rc8+ {[%clk 0:00:16]}  Kf7 {[%clk 0:00:15]} 37. Ke5 {[%clk 0:00:16]}  Ke7 {[%clk 0:00:12]} 38. Rc7+ {[%clk 0:00:16]}  Kd8 {[%clk 0:00:13]} 39. Rh7 {[%clk 0:00:16]}  Rxa2 {[%clk 0:00:09]} 40. Kd6 {[%clk 0:00:15]}  Ra6+ {[%clk 0:00:08]} 41. Kc5 {[%clk 0:00:15]}  Rc6+ {[%clk 0:00:08]} 42. Kd5 {[%clk 0:00:16]}  Kc8 {[%clk 0:00:05]} 43. d4 {[%clk 0:00:16]}  a5 {[%clk 0:00:05]} 44. Ke5 {[%clk 0:00:15]}  a4 {[%clk 0:00:03]} 45. d5 {[%clk 0:00:15]}  Rg6 {[%clk 0:00:03]} 46. d6 {[%clk 0:00:12]}  Rg1 {[%clk 0:00:03]} 47. Rh4 {[%clk 0:00:10]}  Re1+ {[%clk 0:00:02]} 48. Kd5 {[%clk 0:00:10]}  Rd1+ {[%clk 0:00:03]} 49. Kc5 {[%clk 0:00:10]}  a3 {[%clk 0:00:02]} 50. Rh8+ {[%clk 0:00:08]}  Kd7 {[%clk 0:00:02]} 51. Rh7+ {[%clk 0:00:07]}  Kc8 {[%clk 0:00:03]} 52. Rh8+ {[%clk 0:00:07]}  Kd7 {[%clk 0:00:03]} 53. Ra8 {[%clk 0:00:06]}  Rd3 {[%clk 0:00:02]} 54. Ra7 {[%clk 0:00:06]}  Rc3+ {[%clk 0:00:02]} 55. Kd4 {[%clk 0:00:06]}  Rc6 {[%clk 0:00:03]} 56. Rxb7+ {[%clk 0:00:04]}  Kxd6 {[%clk 0:00:04]} 57. Ra7 {[%clk 0:00:05]}  a2 {[%clk 0:00:04]} 58. Rxa2 {[%clk 0:00:05]}  Kc7 {[%clk 0:00:05]} 59. Ra5 {[%clk 0:00:05]}  Kb6 {[%clk 0:00:05]} 60. Rd5 {[%clk 0:00:05]}  Kc7 {[%clk 0:00:05]} 61. Rc5 {[%clk 0:00:05]}  Rxc5 {[%clk 0:00:05]} 62. Kxc5 {[%clk 0:00:05]} 1/2-1/2


[Site "https://www.chess.com"]

[Event "Titled Tuesday Blitz November 08 Early 2022"]
[White "Mouhamad, Joachim"]
[Black "Gritsenko, Nikolai"]
[WhiteFideId "656410"]
[BlackFideId "14112493"]
[WhiteElo "2164"]
[BlackElo "2389"]
[Result "1-0"]
[Round "03"]
[TimeControl "180+1"]
[Date "2022.11.09"]
[WhiteClock "0:00:08"]
[BlackClock "0:00:09"]

1. e4 {[%clk 0:03:00]}  d5 {[%clk 0:02:58]} 2. exd5 {[%clk 0:03:00]}  Nf6 {[%clk 0:02:58]} 3. d4 {[%clk 0:03:00]}  Nxd5 {[%clk 0:02:57]} 4. Nf3 {[%clk 0:03:01]}  Bf5 {[%clk 0:02:55]} 5. a3 {[%clk 0:02:59]}  e6 {[%clk 0:02:55]} 6. c4 {[%clk 0:02:59]}  Nb6 {[%clk 0:02:55]} 7. Nc3 {[%clk 0:02:58]}  Be7 {[%clk 0:02:53]} 8. Be2 {[%clk 0:02:51]}  O-O {[%clk 0:02:51]} 9. O-O {[%clk 0:02:51]}  a5 {[%clk 0:02:50]} 10. b3 {[%clk 0:02:48]}  Bf6 {[%clk 0:02:46]} 11. Bf4 {[%clk 0:02:36]}  Nc6 {[%clk 0:02:42]} 12. Nb5 {[%clk 0:02:25]}  Rc8 {[%clk 0:02:41]} 13. Rc1 {[%clk 0:02:16]}  Qe7 {[%clk 0:02:14]} 14. Qd2 {[%clk 0:02:05]}  Rfd8 {[%clk 0:02:12]} 15. Qe3 {[%clk 0:02:05]}  h6 {[%clk 0:02:04]} 16. Rfd1 {[%clk 0:02:04]}  g5 {[%clk 0:02:00]} 17. Bg3 {[%clk 0:02:01]}  g4 {[%clk 0:01:53]} 18. Ne5 {[%clk 0:01:58]}  Nxe5 {[%clk 0:01:46]} 19. dxe5 {[%clk 0:01:47]}  Bg5 {[%clk 0:01:45]} 20. Bf4 {[%clk 0:01:47]}  Rxd1+ {[%clk 0:01:38]} 21. Rxd1 {[%clk 0:01:47]}  Rd8 {[%clk 0:01:38]} 22. Bxg5 {[%clk 0:01:39]}  hxg5 {[%clk 0:01:26]} 23. Nd4 {[%clk 0:01:27]}  Kg7 {[%clk 0:01:06]} 24. Bd3 {[%clk 0:01:09]}  c5 {[%clk 0:00:53]} 25. Nb5 {[%clk 0:00:57]}  Nc8 {[%clk 0:00:43]} 26. g3 {[%clk 0:00:51]}  Rd7 {[%clk 0:00:40]} 27. Kg2 {[%clk 0:00:46]}  Qd8 {[%clk 0:00:38]} 28. Bxf5 {[%clk 0:00:31]}  Rxd1 {[%clk 0:00:36]} 29. Bxg4 {[%clk 0:00:31]}  Rd3 {[%clk 0:00:34]} 30. Qxc5 {[%clk 0:00:30]}  Rxb3 {[%clk 0:00:30]} 31. Bf3 {[%clk 0:00:28]}  b6 {[%clk 0:00:27]} 32. Qc6 {[%clk 0:00:25]}  Ne7 {[%clk 0:00:26]} 33. Qe4 {[%clk 0:00:24]}  Nf5 {[%clk 0:00:25]} 34. Qg4 {[%clk 0:00:22]}  Rb2 {[%clk 0:00:23]} 35. Kg1 {[%clk 0:00:14]}  Qd2 {[%clk 0:00:21]} 36. Be2 {[%clk 0:00:10]}  Qxe2 {[%clk 0:00:21]} 37. Qxg5+ {[%clk 0:00:10]}  Kh7 {[%clk 0:00:20]} 38. Qf4 {[%clk 0:00:06]}  Rb1+ {[%clk 0:00:18]} 39. Kg2 {[%clk 0:00:07]}  Qf1+ {[%clk 0:00:18]} 40. Kf3 {[%clk 0:00:07]}  Rb3+ {[%clk 0:00:18]} 41. Kg4 {[%clk 0:00:06]}  Qe2+ {[%clk 0:00:16]} 42. Kg5 {[%clk 0:00:06]}  Ng7 {[%clk 0:00:14]} 43. Kf6 {[%clk 0:00:04]}  Qh5 {[%clk 0:00:12]} 44. Qe4+ {[%clk 0:00:02]}  Kh8 {[%clk 0:00:11]} 45. Ke7 {[%clk 0:00:01]}  Rf3 {[%clk 0:00:08]} 46. Qa8+ {[%clk 0:00:01]}  Kh7 {[%clk 0:00:08]} 47. Nd6 {[%clk 0:00:01]}  Nf5+ {[%clk 0:00:08]} 48. Kd7 {[%clk 0:00:02]}  Nxd6 {[%clk 0:00:07]} 49. exd6 {[%clk 0:00:02]}  Qf5 {[%clk 0:00:06]} 50. Qe8 {[%clk 0:00:01]}  Rd3 {[%clk 0:00:06]} 51. Qe7 {[%clk 0:00:01]}  e5+ {[%clk 0:00:05]} 52. Ke8 {[%clk 0:00:02]}  e4 {[%clk 0:00:04]} 53. d7 {[%clk 0:00:02]}  Rxd7 {[%clk 0:00:04]} 54. Qxd7 {[%clk 0:00:02]}  Kg6 {[%clk 0:00:04]} 55. Qd2 {[%clk 0:00:01]}  Qe6+ {[%clk 0:00:04]} 56. Kf8 {[%clk 0:00:01]}  Qxc4 {[%clk 0:00:04]} 57. Qe3 {[%clk 0:00:02]}  Qe6 {[%clk 0:00:04]} 58. Qf4 {[%clk 0:00:01]}  Qc8+ {[%clk 0:00:03]} 59. Ke7 {[%clk 0:00:01]}  Qb7+ {[%clk 0:00:04]} 60. Kd6 {[%clk 0:00:02]}  Qb8+ {[%clk 0:00:04]} 61. Kd5 {[%clk 0:00:03]}  Qxf4 {[%clk 0:00:04]} 62. gxf4 {[%clk 0:00:04]}  f5 {[%clk 0:00:04]} 63. Ke5 {[%clk 0:00:03]}  Kh5 {[%clk 0:00:04]} 64. Kxf5 {[%clk 0:00:04]}  b5 {[%clk 0:00:05]} 65. Kxe4 {[%clk 0:00:04]}  b4 {[%clk 0:00:06]} 66. axb4 {[%clk 0:00:04]}  a4 {[%clk 0:00:07]} 67. Kd3 {[%clk 0:00:05]}  a3 {[%clk 0:00:06]} 68. Kc2 {[%clk 0:00:05]}  Kg4 {[%clk 0:00:07]} 69. Kb3 {[%clk 0:00:05]}  Kxf4 {[%clk 0:00:08]} 70. b5 {[%clk 0:00:06]}  Ke5 {[%clk 0:00:09]} 71. Kxa3 {[%clk 0:00:06]}  Kd6 {[%clk 0:00:09]} 72. h4 {[%clk 0:00:07]}  Kc7 {[%clk 0:00:10]} 73. h5 {[%clk 0:00:08]}  Kb6 {[%clk 0:00:09]} 74. h6 {[%clk 0:00:08]} 1-0


[Site "https://www.chess.com"]

[Event "Titled Tuesday Blitz November 08 Early 2022"]
[White "Nakamura, Hikaru"]
[Black "Timofeev, Artyom"]
[WhiteFideId "2016192"]
[BlackFideId "4140419"]
[WhiteElo "2909"]
[BlackElo "2586"]
[Result "1-0"]
[Round "03"]
[TimeControl "180+1"]
[Date "2022.11.08"]
[WhiteClock "0:00:32"]
[BlackClock "0:00:20"]

1. Nf3 {[%clk 0:02:52]}  Nf6 {[%clk 0:02:58]} 2. g3 {[%clk 0:02:52]}  g6 {[%clk 0:02:57]} 3. Bg2 {[%clk 0:02:50]}  Bg7 {[%clk 0:02:58]} 4. O-O {[%clk 0:02:49]}  O-O {[%clk 0:02:58]} 5. d3 {[%clk 0:02:48]}  c5 {[%clk 0:02:57]} 6. e4 {[%clk 0:02:47]}  Nc6 {[%clk 0:02:56]} 7. c3 {[%clk 0:02:47]}  d6 {[%clk 0:02:54]} 8. Nbd2 {[%clk 0:02:47]}  e5 {[%clk 0:02:50]} 9. a3 {[%clk 0:02:46]}  h6 {[%clk 0:02:46]} 10. b4 {[%clk 0:02:45]}  a6 {[%clk 0:02:45]} 11. bxc5 {[%clk 0:02:40]}  dxc5 {[%clk 0:02:45]} 12. Nc4 {[%clk 0:02:41]}  Qc7 {[%clk 0:02:32]} 13. Ne3 {[%clk 0:02:35]}  Be6 {[%clk 0:02:31]} 14. c4 {[%clk 0:02:35]}  Nd4 {[%clk 0:02:27]} 15. a4 {[%clk 0:02:19]}  b5 {[%clk 0:02:17]} 16. Nxd4 {[%clk 0:02:07]}  cxd4 {[%clk 0:02:13]} 17. Nd5 {[%clk 0:02:07]}  Bxd5 {[%clk 0:01:54]} 18. cxd5 {[%clk 0:02:06]}  Rfc8 {[%clk 0:01:48]} 19. Bh3 {[%clk 0:02:00]}  Rd8 {[%clk 0:01:39]} 20. Bd2 {[%clk 0:01:56]}  Qb7 {[%clk 0:01:17]} 21. Qc2 {[%clk 0:01:42]}  Ne8 {[%clk 0:01:11]} 22. Rfc1 {[%clk 0:01:35]}  Bf8 {[%clk 0:01:07]} 23. Qc6 {[%clk 0:01:28]}  Qxc6 {[%clk 0:01:07]} 24. dxc6 {[%clk 0:01:28]}  Nc7 {[%clk 0:01:07]} 25. Ba5 {[%clk 0:01:27]}  Bd6 {[%clk 0:01:06]} 26. Bb6 {[%clk 0:01:11]}  Rdb8 {[%clk 0:01:03]} 27. a5 {[%clk 0:01:12]}  Re8 {[%clk 0:00:55]} 28. Bd7 {[%clk 0:01:10]}  Re7 {[%clk 0:00:55]} 29. Rf1 {[%clk 0:01:07]}  Kg7 {[%clk 0:00:53]} 30. f4 {[%clk 0:01:07]}  f6 {[%clk 0:00:53]} 31. Ra2 {[%clk 0:01:03]}  Rf8 {[%clk 0:00:52]} 32. Raf2 {[%clk 0:01:02]}  Ref7 {[%clk 0:00:53]} 33. h4 {[%clk 0:01:00]}  h5 {[%clk 0:00:52]} 34. Kg2 {[%clk 0:01:00]}  Na8 {[%clk 0:00:46]} 35. f5 {[%clk 0:00:35]}  g5 {[%clk 0:00:39]} 36. Be6 {[%clk 0:00:34]}  g4 {[%clk 0:00:31]} 37. Bxf7 {[%clk 0:00:33]}  Kxf7 {[%clk 0:00:31]} 38. c7 {[%clk 0:00:34]}  Bxc7 {[%clk 0:00:27]} 39. Bxc7 {[%clk 0:00:32]}  Nxc7 {[%clk 0:00:27]} 40. Rc2 {[%clk 0:00:33]}  Ne8 {[%clk 0:00:20]} 41. Rc6 {[%clk 0:00:32]} 1-0


[Site "https://www.chess.com"]

[Event "Titled Tuesday Blitz November 08 Early 2022"]
[White "Napoli, Nicolo"]
[Black "Gracia Alvarez, Gerardo Antonio"]
[WhiteFideId "813702"]
[BlackFideId "5109124"]
[WhiteElo "2311"]
[BlackElo "2139"]
[Result "0-1"]
[Round "03"]
[TimeControl "180+1"]
[Date "2022.11.09"]
[WhiteClock "0:00:55"]
[BlackClock "0:00:09"]

1. e4 {[%clk 0:02:58]}  c5 {[%clk 0:02:59]} 2. Nf3 {[%clk 0:02:55]}  Nc6 {[%clk 0:02:59]} 3. d4 {[%clk 0:02:55]}  cxd4 {[%clk 0:03:00]} 4. Nxd4 {[%clk 0:02:56]}  Nf6 {[%clk 0:03:01]} 5. Nc3 {[%clk 0:02:53]}  e5 {[%clk 0:03:01]} 6. Ndb5 {[%clk 0:02:53]}  h6 {[%clk 0:03:02]} 7. a4 {[%clk 0:02:49]}  Bb4 {[%clk 0:02:54]} 8. Qd3 {[%clk 0:02:45]}  O-O {[%clk 0:02:18]} 9. Bd2 {[%clk 0:02:37]}  d5 {[%clk 0:01:43]} 10. Nxd5 {[%clk 0:02:32]}  Bxd2+ {[%clk 0:01:35]} 11. Kxd2 {[%clk 0:02:33]}  Be6 {[%clk 0:01:25]} 12. c4 {[%clk 0:02:20]}  Rc8 {[%clk 0:01:12]} 13. Be2 {[%clk 0:02:12]}  a6 {[%clk 0:01:11]} 14. Nbc3 {[%clk 0:02:12]}  Na5 {[%clk 0:01:07]} 15. Nxf6+ {[%clk 0:02:07]}  Qxf6 {[%clk 0:01:07]} 16. Nd5 {[%clk 0:02:07]}  Nxc4+ {[%clk 0:00:42]} 17. Qxc4 {[%clk 0:02:06]}  Qg5+ {[%clk 0:00:42]} 18. f4 {[%clk 0:02:06]}  exf4 {[%clk 0:00:43]} 19. h4 {[%clk 0:01:57]}  Qxg2 {[%clk 0:00:33]} 20. Qd3 {[%clk 0:01:46]}  Bxd5 {[%clk 0:00:26]} 21. exd5 {[%clk 0:01:44]}  Rfe8 {[%clk 0:00:19]} 22. Rhg1 {[%clk 0:01:44]}  Rxe2+ {[%clk 0:00:11]} 23. Qxe2 {[%clk 0:01:45]}  Rc2+ {[%clk 0:00:11]} 24. Kxc2 {[%clk 0:01:45]}  Qxe2+ {[%clk 0:00:12]} 25. Kb3 {[%clk 0:01:46]}  Qd3+ {[%clk 0:00:11]} 26. Ka2 {[%clk 0:01:40]}  Qxd5+ {[%clk 0:00:11]} 27. b3 {[%clk 0:01:40]}  Qd2+ {[%clk 0:00:11]} 28. Ka3 {[%clk 0:01:40]}  a5 {[%clk 0:00:11]} 29. Rad1 {[%clk 0:01:40]}  Qb4+ {[%clk 0:00:11]} 30. Ka2 {[%clk 0:01:40]}  b5 {[%clk 0:00:08]} 31. Rd8+ {[%clk 0:01:28]}  Kh7 {[%clk 0:00:06]} 32. axb5 {[%clk 0:01:14]}  a4 {[%clk 0:00:05]} 33. Rb1 {[%clk 0:01:13]}  Qxb5 {[%clk 0:00:02]} 34. Rd4 {[%clk 0:01:06]}  axb3+ {[%clk 0:00:02]} 35. Rxb3 {[%clk 0:01:06]}  Qe2+ {[%clk 0:00:03]} 36. Ka3 {[%clk 0:01:05]}  f3 {[%clk 0:00:02]} 37. Rf4 {[%clk 0:01:03]}  f2 {[%clk 0:00:02]} 38. Rbf3 {[%clk 0:01:02]}  Qe7+ {[%clk 0:00:02]} 39. Kb2 {[%clk 0:01:02]}  Kg6 {[%clk 0:00:01]} 40. Rxf2 {[%clk 0:01:01]}  f5 {[%clk 0:00:01]} 41. Rxf5 {[%clk 0:01:01]}  Qb7+ {[%clk 0:00:01]} 42. Ka1 {[%clk 0:00:54]}  Qa7+ {[%clk 0:00:01]} 43. Kb1 {[%clk 0:00:51]}  Qb8+ {[%clk 0:00:01]} 44. Ka1 {[%clk 0:00:51]}  Qa8+ {[%clk 0:00:01]} 45. Kb1 {[%clk 0:00:52]}  Qe4+ {[%clk 0:00:01]} 46. Ka2 {[%clk 0:00:49]}  Qxf5 {[%clk 0:00:02]} 47. Rxf5 {[%clk 0:00:46]}  Kxf5 {[%clk 0:00:03]} 48. Kb3 {[%clk 0:00:46]}  Kg4 {[%clk 0:00:03]} 49. Kc2 {[%clk 0:00:47]}  Kxh4 {[%clk 0:00:04]} 50. Kd2 {[%clk 0:00:48]}  Kg3 {[%clk 0:00:05]} 51. Ke2 {[%clk 0:00:49]}  Kg2 {[%clk 0:00:05]} 52. Ke3 {[%clk 0:00:49]}  h5 {[%clk 0:00:06]} 53. Kf4 {[%clk 0:00:50]}  h4 {[%clk 0:00:06]} 54. Kf5 {[%clk 0:00:51]}  h3 {[%clk 0:00:07]} 55. Kg5 {[%clk 0:00:52]}  h2 {[%clk 0:00:07]} 56. Kg6 {[%clk 0:00:53]}  h1=Q {[%clk 0:00:08]} 57. Kf7 {[%clk 0:00:54]}  Qf1+ {[%clk 0:00:08]} 58. Kg8 {[%clk 0:00:55]}  Qf3 {[%clk 0:00:09]} 0-1


[Site "https://www.chess.com"]

[Event "Titled Tuesday Blitz November 08 Early 2022"]
[White "Nurmanova, Alua"]
[Black "Sreyas Payyappat"]
[WhiteFideId "13729390"]
[BlackFideId "46674969"]
[WhiteElo "2120"]
[BlackElo "2083"]
[Result "1-0"]
[Round "03"]
[TimeControl "180+1"]
[Date "2022.11.09"]
[WhiteClock "0:00:10"]
[BlackClock "0:00:09"]

1. e4 {[%clk 0:03:00]}  c6 {[%clk 0:03:00]} 2. d4 {[%clk 0:03:00]}  d5 {[%clk 0:02:59]} 3. e5 {[%clk 0:02:58]}  Bf5 {[%clk 0:02:59]} 4. h4 {[%clk 0:02:59]}  Qc7 {[%clk 0:02:57]} 5. g4 {[%clk 0:02:55]}  Bd7 {[%clk 0:02:57]} 6. Nc3 {[%clk 0:02:47]}  h5 {[%clk 0:02:53]} 7. g5 {[%clk 0:02:43]}  g6 {[%clk 0:02:37]} 8. Bh3 {[%clk 0:02:40]}  Bxh3 {[%clk 0:02:36]} 9. Nxh3 {[%clk 0:02:41]}  e6 {[%clk 0:02:36]} 10. Nf4 {[%clk 0:02:34]}  Ne7 {[%clk 0:02:35]} 11. Be3 {[%clk 0:02:30]}  Nf5 {[%clk 0:02:35]} 12. Nce2 {[%clk 0:02:26]}  c5 {[%clk 0:02:28]} 13. c3 {[%clk 0:02:23]}  Nc6 {[%clk 0:02:26]} 14. Ng3 {[%clk 0:02:15]}  Nxg3 {[%clk 0:02:10]} 15. fxg3 {[%clk 0:02:14]}  c4 {[%clk 0:02:10]} 16. g4 {[%clk 0:02:10]}  hxg4 {[%clk 0:01:50]} 17. Qxg4 {[%clk 0:02:11]}  Qb6 {[%clk 0:01:43]} 18. Qe2 {[%clk 0:01:52]}  Be7 {[%clk 0:01:36]} 19. Kf2 {[%clk 0:01:48]}  O-O-O {[%clk 0:01:34]} 20. Rag1 {[%clk 0:01:45]}  Qa5 {[%clk 0:01:29]} 21. a3 {[%clk 0:01:43]}  Rh7 {[%clk 0:01:09]} 22. h5 {[%clk 0:01:19]}  gxh5 {[%clk 0:00:51]} 23. Rxh5 {[%clk 0:01:18]}  Rg7 {[%clk 0:00:44]} 24. g6 {[%clk 0:01:03]}  fxg6 {[%clk 0:00:37]} 25. Rxg6 {[%clk 0:00:58]}  Rxg6 {[%clk 0:00:32]} 26. Nxg6 {[%clk 0:00:59]}  Rg8 {[%clk 0:00:28]} 27. Qg4 {[%clk 0:00:58]}  Kd7 {[%clk 0:00:20]} 28. Rh6 {[%clk 0:00:32]}  Qb6 {[%clk 0:00:19]} 29. Qe2 {[%clk 0:00:31]}  Qd8 {[%clk 0:00:17]} 30. Qh5 {[%clk 0:00:27]}  Qe8 {[%clk 0:00:16]} 31. Ke1 {[%clk 0:00:25]}  Qf7 {[%clk 0:00:15]} 32. Kd2 {[%clk 0:00:23]}  Rg7 {[%clk 0:00:14]} 33. Nf4 {[%clk 0:00:17]}  Nd8 {[%clk 0:00:13]} 34. Qxf7 {[%clk 0:00:16]}  Rxf7 {[%clk 0:00:12]} 35. Rg6 {[%clk 0:00:13]}  Rh7 {[%clk 0:00:10]} 36. Kc2 {[%clk 0:00:09]}  Rh2+ {[%clk 0:00:10]} 37. Rg2 {[%clk 0:00:10]}  Rxg2+ {[%clk 0:00:10]} 38. Nxg2 {[%clk 0:00:11]}  Nf7 {[%clk 0:00:10]} 39. Nf4 {[%clk 0:00:11]}  Bg5 {[%clk 0:00:10]} 40. Ng2 {[%clk 0:00:10]}  Bxe3 {[%clk 0:00:09]} 41. Nxe3 {[%clk 0:00:11]}  Nh6 {[%clk 0:00:09]} 42. b3 {[%clk 0:00:11]}  b5 {[%clk 0:00:09]} 43. a4 {[%clk 0:00:11]}  a6 {[%clk 0:00:09]} 44. axb5 {[%clk 0:00:10]}  axb5 {[%clk 0:00:10]} 45. Kb2 {[%clk 0:00:11]}  Ke7 {[%clk 0:00:10]} 46. Nc2 {[%clk 0:00:11]}  Kd7 {[%clk 0:00:09]} 47. Nb4 {[%clk 0:00:11]}  Kc7 {[%clk 0:00:08]} 48. Na6+ {[%clk 0:00:11]}  Kd7 {[%clk 0:00:07]} 49. Nc5+ {[%clk 0:00:11]}  Ke7 {[%clk 0:00:07]} 50. Ka3 {[%clk 0:00:11]}  Nf7 {[%clk 0:00:07]} 51. Kb4 {[%clk 0:00:11]}  cxb3 {[%clk 0:00:05]} 52. Nxb3 {[%clk 0:00:12]}  Ng5 {[%clk 0:00:06]} 53. Kxb5 {[%clk 0:00:12]}  Ne4 {[%clk 0:00:06]} 54. Kb4 {[%clk 0:00:09]}  Kd8 {[%clk 0:00:07]} 55. Nc5 {[%clk 0:00:10]}  Ng5 {[%clk 0:00:07]} 56. Kb5 {[%clk 0:00:09]}  Kc7 {[%clk 0:00:07]} 57. c4 {[%clk 0:00:09]}  dxc4 {[%clk 0:00:08]} 58. Kxc4 {[%clk 0:00:10]}  Kc6 {[%clk 0:00:08]} 59. Nd3 {[%clk 0:00:07]}  Ne4 {[%clk 0:00:08]} 60. Nb4+ {[%clk 0:00:08]}  Kd7 {[%clk 0:00:08]} 61. Kd3 {[%clk 0:00:08]}  Ng3 {[%clk 0:00:09]} 62. Kc4 {[%clk 0:00:08]}  Nf5 {[%clk 0:00:09]} 63. Kc5 {[%clk 0:00:08]}  Ne3 {[%clk 0:00:08]} 64. Nd3 {[%clk 0:00:07]}  Ke7 {[%clk 0:00:08]} 65. Nf4 {[%clk 0:00:07]}  Kd7 {[%clk 0:00:08]} 66. Ng6 {[%clk 0:00:07]}  Nd5 {[%clk 0:00:08]} 67. Nh4 {[%clk 0:00:06]}  Ke7 {[%clk 0:00:08]} 68. Nf3 {[%clk 0:00:07]}  Ne3 {[%clk 0:00:08]} 69. Ng5 {[%clk 0:00:08]}  Kd7 {[%clk 0:00:08]} 70. Ne4 {[%clk 0:00:08]}  Ke7 {[%clk 0:00:09]} 71. Nf6 {[%clk 0:00:09]}  Nf5 {[%clk 0:00:06]} 72. d5 {[%clk 0:00:09]}  exd5 {[%clk 0:00:07]} 73. Kxd5 {[%clk 0:00:10]}  Ne3+ {[%clk 0:00:07]} 74. Ke4 {[%clk 0:00:10]}  Nc4 {[%clk 0:00:07]} 75. Nd5+ {[%clk 0:00:10]}  Ke6 {[%clk 0:00:07]} 76. Nf4+ {[%clk 0:00:10]}  Ke7 {[%clk 0:00:08]} 77. e6 {[%clk 0:00:10]}  Nb6 {[%clk 0:00:08]} 78. Ke5 {[%clk 0:00:10]}  Nc4+ {[%clk 0:00:08]} 79. Kd4 {[%clk 0:00:10]}  Nb6 {[%clk 0:00:08]} 80. Kc5 {[%clk 0:00:10]}  Na4+ {[%clk 0:00:08]} 81. Kd5 {[%clk 0:00:10]}  Nc3+ {[%clk 0:00:09]} 82. Ke5 {[%clk 0:00:10]}  Na4 {[%clk 0:00:09]} 83. Nd5+ {[%clk 0:00:10]}  Ke8 {[%clk 0:00:09]} 84. Kd6 {[%clk 0:00:10]}  Nc3 {[%clk 0:00:09]} 85. Nc7+ {[%clk 0:00:09]}  Kf8 {[%clk 0:00:08]} 86. e7+ {[%clk 0:00:10]}  Kg7 {[%clk 0:00:09]} 87. e8=Q {[%clk 0:00:10]} 1-0


[Site "https://www.chess.com"]